fUSD/lending_fUSD_20260322
["ID","MTS","AMOUNT","RATE_DAILY","PERIOD"]
[408698418,1774140640936,-219.6456524,0.00012909,2]
[408698419,1774140640945,-26499.14035228,0.00012962,2]
[408698420,1774140640955,-488.99844475,0.00012963,2]
[408698421,1774140640964,-200.0,0.00012965,2]
[408698422,1774140640974,-504.83,0.00012972,2]
[408698423,1774140640983,-32981.2159,0.00012973,2]
[408698424,1774140641002,-1000.0,0.00012973,2]
[408698425,1774140641012,-559524.6163,0.00012973,2]
[408698426,1774140641023,-9468.13612512,0.00013109,2]
[408698427,1774140641033,-4278.21840093,0.00013209,2]
[408698428,1774140641043,-343.42821696,0.00013224,2]
[408698429,1774140641055,-735.16715757,0.00013224,2]
[408698430,1774140641065,-655.41280434,0.00013224,2]
[408698431,1774140641074,-504.83,0.00013246,2]
[408698432,1774140641085,-43313.30840579,0.00013257,2]
[408698433,1774140641094,-1807.02465068,0.00013305,2]
[408698434,1774140641104,-504.83,0.0001352,2]
[408698435,1774140641113,-4278.21840093,0.00013546,2]
[408698436,1774140641123,-500.0,0.00013698,2]
[408698437,1774140641132,-500.0,0.00013698,2]
[408698438,1774140641142,-500.0,0.00013698,2]
[408698439,1774140641152,-233.10985425,0.00013698,2]
[408698440,1774140641162,-500.0,0.00013698,2]
[408698441,1774140641171,-390.59500791,0.00013698,2]
[408698442,1774140641180,-500.0,0.00013698,2]
[408698443,1774140641189,-500.0,0.00013698,2]
[408698444,1774140641199,-500.0,0.00013698,2]
[408698445,1774140641209,-500.0,0.00013698,2]
[408698446,1774140641218,-500.0,0.00013698,2]
[408698447,1774140641227,-569.64418973,0.00013698,2]
[408698448,1774140641237,-500.0,0.00013698,2]
[408698449,1774140641247,-500.0,0.00013698,2]
[408698450,1774140641257,-500.0,0.00013698,2]
[408698451,1774140641266,-500.0,0.00013698,2]
[408698452,1774140641275,-500.0,0.00013698,2]
[408698453,1774140641285,-500.0,0.00013698,2]
[408698454,1774140641295,-500.0,0.00013698,2]
[408698455,1774140641304,-338.47316987,0.00013698,2]
[408698456,1774140641313,-500.0,0.00013698,2]
[408698457,1774140641322,-500.0,0.00013698,2]
[408698458,1774140641332,-441.16865267,0.00013698,2]
[408698461,1774140641341,-500.0,0.00013698,2]
[408698464,1774140641350,-500.0,0.00013698,2]
[408698466,1774140641360,-500.0,0.00013698,2]
[408698468,1774140641369,-500.0,0.00013698,2]
[408698470,1774140641379,-282.40708321,0.00013698,2]
[408698472,1774140641389,-378.09,0.00013699,2]
[408698473,1774140641399,-1265.64,0.00013699,2]
[408698474,1774140641408,-200.0,0.00013699,2]
[408698475,1774140641417,-237.83140265,0.00013699,2]
[408698476,1774140641426,-727.08,0.000137,2]
[408698477,1774140641435,-500.0,0.00013726,2]
[408698478,1774140641445,-1807.02465068,0.00013738,2]
[408698479,1774140641454,-504.83,0.00013794,2]
[408698480,1774140641464,-1159.85,0.000138,2]
[408698481,1774140641473,-454.86,0.000138,2]
[408698482,1774140641483,-4278.21840093,0.00013882,2]
[408698483,1774140641496,-255.0,0.00013978,2]
[408698484,1774140641506,-505.0,0.00014,2]
[408698485,1774140641515,-250.0,0.00014026,2]
[408698486,1774140641527,-300.0,0.0001405,2]
[408698487,1774140641536,-195.0,0.0001405,2]
[408698488,1774140641546,-195.0,0.0001405,2]
[408698489,1774140641555,-195.0,0.0001405,2]
[408698490,1774140641566,-195.0,0.0001405,2]
[408698491,1774140641575,-195.0,0.0001405,2]
[408698492,1774140641585,-250.0,0.0001405,2]
[408698493,1774140641596,-600.0,0.0001405,2]
[408698494,1774140641605,-300.0,0.0001405,2]
[408698495,1774140641614,-600.0,0.0001405,2]
[408698496,1774140641624,-300.0,0.0001405,2]
[408698497,1774140641634,-300.06600227,0.0001405,2]
[408698498,1774140641643,-300.0,0.00014061,2]
[408698499,1774140641653,-300.0,0.00014061,2]
[408698500,1774140641663,-414.32525426,0.00014061,2]
[408698501,1774140641672,-500.0,0.00014061,2]
[408698502,1774140641682,-150.01472707,0.00014061,2]
[408698503,1774140641691,-5000.0,0.00014061,2]
[408698504,1774140641701,-5000.0,0.00014061,2]
[408698505,1774140641710,-300.0,0.00014061,2]
[408698506,1774140641720,-504.8645564,0.00014068,2]
[408698507,1774140641730,-250.0,0.00014079,2]
[408698508,1774140641740,-600.0,0.00014079,2]
[408698509,1774140641749,-1680.0,0.00014079,2]
[408698510,1774140641759,-280.69307553,0.00014106,2]
[408698511,1774140641770,-2000.0,0.00014121,2]
[408698512,1774140641780,-1807.02465068,0.0001417,2]
[408698513,1774140641789,-215.92840911,0.00014185,2]
[408698514,1774140641799,-4278.21840093,0.00014218,2]
[408698515,1774140641809,-201.92,0.000143,2]
[408698516,1774140641818,-1249.32,0.000143,2]
[408698517,1774140641827,-516.33,0.00014336,2]
[408698518,1774140641837,-1265.64,0.00014384,2]
[408698519,1774140641847,-424.7517642,0.00014387,2]
[408698520,1774140641858,-161.0,0.000144,2]
[408698521,1774140641867,-799.89104181,0.00014405,2]
[408698522,1774140641877,-219.64565239,0.00014405,2]
[408698523,1774140641886,-1600.0,0.00014482,2]
[408698524,1774140641896,-500.0,0.00014493,2]
[408698525,1774140641906,-9468.13612512,0.00014505,2]
[408698526,1774140641916,-186.299177,0.00014513,2]
[408698527,1774140641925,-4278.21840093,0.00014555,2]
[408698528,1774140641934,-154.25568664,0.00014586,2]
[408698529,1774140641944,-824.1,0.000146,2]
[408698530,1774140641953,-1807.02465068,0.00014603,2]
[408698531,1774140641963,-1568.0,0.0001472,2]
[408698532,1774140641973,-5120.84213055,0.00014742,2]
[408698533,1774140641983,-500.0,0.00014742,2]
[408698534,1774140641993,-500.0,0.00014742,2]
[408698535,1774140642003,-500.0,0.00014742,2]
[408698536,1774140642013,-500.0,0.00014742,2]
[408698537,1774140642022,-500.0,0.00014742,2]
[408698538,1774140642032,-500.0,0.00014742,2]
[408698539,1774140642042,-500.0,0.00014742,2]
[408698540,1774140642051,-500.0,0.00014742,2]
[408698541,1774140642061,-500.0,0.00014742,2]
[408698542,1774140642071,-500.0,0.00014742,2]
[408698543,1774140642081,-500.0,0.00014742,2]
[408698544,1774140642091,-312.29891464,0.00014742,2]
[408698545,1774140642101,-4278.21840093,0.00014891,2]
[408698546,1774140642111,-161.0,0.00015,2]
[408698547,1774140642120,-1807.02465068,0.00015035,2]
[408698548,1774140642130,-1265.64,0.00015068,2]
[408698549,1774140642140,-979.16666667,0.00015157,2]
[408698550,1774140642150,-160.0,0.00015157,2]
[408698551,1774140642161,-160.0,0.00015157,2]
[408698552,1774140642170,-500.0,0.00015174,2]
[408698553,1774140642181,-500.0,0.00015174,2]
[408698554,1774140642190,-500.0,0.00015174,2]
[408698555,1774140642200,-500.0,0.00015174,2]
[408698556,1774140642212,-500.0,0.00015174,2]
[408698557,1774140642222,-325.0,0.00015174,2]
[408698558,1774140642231,-150.0,0.00015174,2]
[408698559,1774140642242,-150.0,0.00015174,2]
[408698560,1774140642251,-150.0,0.00015174,2]
[408698561,1774140642261,-260.21194763,0.00015174,2]
[408698562,1774140642270,-433.0,0.00015175,2]
[408698563,1774140642280,-4278.21840093,0.00015227,2]
[408698564,1774140642290,-900.0,0.00015458,2]
[408698565,1774140642303,-1807.02465068,0.00015468,2]
[408698566,1774140642313,-2351.0,0.00015487,2]
[408698567,1774140642322,-4000.0,0.00015507,2]
[408698568,1774140642332,-2403.0,0.00015525,2]
[408698569,1774140642341,-219.0,0.00015531,2]
[408698570,1774140642351,-4278.21840093,0.00015564,2]
[408698571,1774140642361,-338.447018,0.00015582,7]
[408698572,1774140642371,-171.686562,0.00015582,7]
[408698573,1774140642380,-1200.0,0.000156,5]
[408698574,1774140642389,-1938.0,0.00015651,2]
[408698575,1774140642398,-160.0,0.00015679,7]
[408698576,1774140642408,-2297.82729076,0.0001568,2]
[408698577,1774140642418,-467.952439,0.0001568,7]
[408698578,1774140642427,-160.0,0.0001568,7]
[408698579,1774140642437,-484.652643,0.0001568,7]
[408698580,1774140642447,-160.0,0.0001568,7]
[408698581,1774140642457,-727.08,0.000157,2]
[408698582,1774140642467,-200.0,0.000157,5]
[408698583,1774140642477,-1265.64,0.00015753,2]
[408698584,1774140642489,-2997.0,0.000158,2]
[408698585,1774140642500,-200.0,0.000158,5]
[408698586,1774140642511,-154.25568664,0.00015801,2]
[408698587,1774140642521,-52050.09144115,0.0001584,2]
[408698588,1774140642533,-378.09,0.00015862,2]
[408698589,1774140642543,-500.0,0.00015872,2]
[408698590,1774140642553,-2000.0,0.00015886,2]
[408698591,1774140642563,-2000.0,0.0001589,2]
[408698592,1774140642573,-325.0,0.00015894,2]
[408698593,1774140642583,-4000.0,0.00015895,2]
[408698594,1774140642593,-10000.0,0.000159,2]
[408698595,1774140642603,-4278.21840093,0.000159,2]
[408698596,1774140642613,-200.0,0.000159,5]
[408698597,1774140642623,-424.7517642,0.000159,2]
[408698598,1774140642633,-799.89104181,0.000159,2]
[408698599,1774140642643,-219.64565239,0.000159,2]
[408698600,1774140642653,-1807.02465068,0.000159,2]
[408698601,1774140642664,-9468.13612512,0.000159,2]
[408698602,1774140642674,-1935.0,0.000159,5]
[408698603,1774140642684,-1542.0,0.000159,5]
[408698604,1774140642695,-2000.0,0.000159,2]
[408698605,1774140642705,-500.0,0.00015973,2]
[408698606,1774140642715,-399.90719368,0.00015973,2]
[408698607,1774140642726,-500.0,0.00015973,2]
[408698608,1774140642736,-500.0,0.00015973,2]
[408698609,1774140642746,-500.0,0.00015973,2]
[408698610,1774140642757,-500.0,0.00015973,2]
[408698611,1774140642767,-500.0,0.00015973,2]
[408698612,1774140642777,-500.0,0.00015973,2]
[408698613,1774140642786,-500.0,0.00015973,2]
[408698614,1774140642796,-226.57620935,0.00015973,2]
[408698615,1774140642805,-500.0,0.00015973,2]
[408698616,1774140642816,-500.0,0.00015973,2]
[408698617,1774140642826,-500.0,0.00015973,2]
[408698618,1774140642836,-500.0,0.00015973,2]
[408698619,1774140642845,-500.0,0.00015973,2]
[408698620,1774140642858,-500.0,0.00015973,2]
[408698621,1774140642868,-500.0,0.00015973,2]
[408698622,1774140642878,-500.0,0.00015973,2]
[408698623,1774140642888,-500.0,0.00015973,2]
[408698624,1774140642897,-500.43159006,0.00015973,2]
[408698625,1774140642907,-500.0,0.00015973,2]
[408698626,1774140642917,-500.25521792,0.00015973,2]
[408698627,1774140642927,-500.0,0.00015973,2]
[408698628,1774140642937,-500.0,0.00015973,2]
[408698629,1774140642947,-500.0,0.00015973,2]
[408698630,1774140642958,-500.0,0.00015973,2]
[408698631,1774140642967,-350.44574534,0.00015973,2]
[408698632,1774140642977,-500.0,0.00015973,2]
[408698633,1774140642987,-501.28770509,0.00015973,2]
[408698634,1774140642998,-500.0,0.00015973,2]
[408698635,1774140643008,-500.0,0.00015973,2]
[408698636,1774140643017,-500.0,0.00015973,2]
[408698637,1774140643027,-500.0,0.00015973,2]
[408698640,1774140643241,-500.0,0.00015973,2]
[408698641,1774140643250,-500.0,0.00015973,2]
[408698642,1774140643260,-500.0,0.00015973,2]
[408698643,1774140643269,-500.0,0.00015973,2]
[408698644,1774140643279,-500.0,0.00015973,2]
[408698645,1774140643289,-500.0,0.00015973,2]
[408698646,1774140643298,-188.33792056,0.00015973,2]
[408698647,1774140643307,-500.0,0.00015973,2]
[408698648,1774140643317,-500.0,0.00015973,2]
[408698649,1774140643326,-500.0,0.00015973,2]
[408698650,1774140643336,-500.0,0.00015973,2]
[408698651,1774140643345,-500.0,0.00015973,2]
[408698652,1774140643355,-389.88183382,0.00015973,2]
[408698653,1774140643366,-500.22454013,0.00015973,2]
[408698654,1774140643375,-219.0,0.00015974,2]
[408698655,1774140643385,-488.99844475,0.00015989,2]
[408698656,1774140643394,-488.99844475,0.0001599,2]
[408698657,1774140643404,-46735.219942,0.00015994,2]
[408698658,1774140643413,-151.0,0.00015997,2]
[408698659,1774140643423,-150.0,0.00015999,2]
[408698660,1774140643432,-140205.6598258,0.00015999,2]
[408698661,1774140643442,-7048.4695797,0.00015999,2]
[408698662,1774140643453,-4131445.23242301,0.00016,2]
[408698663,1774140643480,-16608.59345968,0.00016,2]
[408698665,1774140643497,-4491.63396319,0.00016,2]
[408698666,1774140643508,-309.77631445,0.00016,2]
[408698667,1774140643520,-1125.18647593,0.00016,2]
[408698670,1774140643615,-500.0,0.00012771,2]
[408698671,1774140643625,-400.0,0.00012771,2]
[408698672,1774140643634,-1859.76,0.00016,2]
[408698673,1774140643794,-36192.82932158,0.00016,2]
[408698693,1774140646286,-276.312,0.00013211,2]
[408698694,1774140646446,-14.92740516,0.00013211,2]
[408698695,1774140646456,-492.57259484,0.00016,2]
[408698696,1774140646562,-2393.12166115,0.00016,2]
[408698702,1774140646927,-3000.0006412,0.00016,2]
[408698703,1774140646939,-890.74413196,0.00016,2]
[408698704,1774140656871,4558.77059478,0.000122,5]
[408698705,1774140656891,974.22940522,0.000122,5]
[408698706,1774140657071,4025.78059478,0.00012,3]
[408698707,1774140657093,1507.21940522,0.00012,3]
[408698708,1774140657286,3492.79059478,0.000118,2]
[408698709,1774140657306,5000.01,0.000118,2]
[408698710,1774140657328,4714.19940522,0.000118,2]
[408698711,1774140751500,2565.439632,0.00012707,2]
[408698712,1774140764675,500.0,0.00012706,2]
[408698713,1774140941590,2170.40788405,0.00012684,2]
[408698714,1774141073647,274.1560491,0.00012672,2]
[408698715,1774141239235,2711.91,0.00011507,2]
[408698717,1774141302171,10000.01,0.00012673,2]
[408698718,1774141439430,10000.01,0.00012673,2]
[408698722,1774141602106,3781.1939,0.00012673,2]
[408698723,1774141630564,-151.0,0.00012765,2]
[408698724,1774141630584,-1262.536535,0.00012766,2]
[408698725,1774141658614,1886.03,0.00012556,2]
[408698726,1774141660728,659.8334,0.00012673,2]
[408698727,1774141673845,311.4,0.00012606,2]
[408698733,1774141698625,372.0,0.000107,5]
[408698734,1774141758218,5000.01,0.00012665,2]
[408698735,1774141802993,5000.01,0.00012673,2]
[408698736,1774141803016,5000.01,0.00012673,2]
[408698737,1774141803038,5000.01,0.00012673,2]
[408698738,1774141803060,5000.01,0.00012673,2]
[408698739,1774141803083,5000.01,0.00012673,2]
[408698740,1774141803104,9628.01,0.00012673,2]
[408698741,1774141803125,10000.01,0.00012673,2]
[408698742,1774141803153,10000.01,0.00012673,2]
[408698743,1774141803176,10000.01,0.00012673,2]
[408698744,1774141803197,10000.01,0.00012673,2]
[408698745,1774141803219,10000.01,0.00012673,2]
[408698746,1774141803241,10000.01,0.00012673,2]
[408698747,1774141824999,200.0,0.000126,2]
[408698748,1774141831465,-18267.5872,0.00012673,2]
[408698749,1774141831481,-173.0,0.00012706,3]
[408698750,1774141831494,-182.0,0.00012706,3]
[408698751,1774141831510,-3737.463465,0.00012766,2]
[408698752,1774141831521,-255.0,0.00012766,2]
[408698753,1774141831533,-300.0,0.00012767,2]
[408698754,1774141831544,-500.0,0.00012768,2]
[408698755,1774141831556,-250.0,0.00012768,2]
[408698756,1774141831568,-300.0,0.0001277,2]
[408698757,1774141831579,-300.0,0.0001277,2]
[408698758,1774141831589,-300.0,0.0001277,2]
[408698759,1774141831599,-1200.0,0.0001277,2]
[408698760,1774141831608,-300.0,0.0001277,2]
[408698761,1774141831618,-250.0,0.0001277,2]
[408698762,1774141831627,-500.0,0.00012815,3]
[408698763,1774141831647,-166.66,0.00012921,2]
[408698764,1774141831661,-150.0,0.00013169,2]
[408698765,1774141831672,-10000.01,0.0001317,2]
[408698766,1774141831681,-299.99,0.0001317,2]
[408698767,1774141831691,-5213.05,0.0001317,2]
[408698769,1774141831702,-9999.99,0.0001317,2]
[408698771,1774141831711,-2377.07548808,0.0001317,2]
[408698772,1774141831722,-300.0,0.0001317,2]
[408698773,1774141831741,-1167.00146,0.0001317,2]
[408698774,1774141831751,-2800.96661148,0.0001317,2]
[408698775,1774141831762,-2305.43483358,0.0001317,2]
[408698776,1774141831782,-768.86365114,0.0001317,2]
[408698777,1774141831805,-280.64795572,0.0001317,2]
[408698778,1774141831815,-64.16204428,0.0001317,2]
[408698779,1774141831851,-86.82795572,0.0001317,2]
[408698780,1774141831863,-166.66,0.00013193,2]
[408698781,1774141831873,-269.51204428,0.00013226,2]
[408698782,1774141831884,-924.98795572,0.00013226,2]
[408698783,1774141831902,-4729.77459037,0.00013276,2]
[408698785,1774141837520,-42482.57584755,0.00013276,2]
[408698786,1774141837656,-1634.46848195,0.00013276,2]
[408698787,1774141837667,-1263.62336059,0.00013276,2]
[408698788,1774141837678,-325.02024,0.00013276,2]
[408698817,1774141842310,-6792.28725334,0.00013276,2]
[408698818,1774141842321,-113.9902262,0.00013276,2]
[408698819,1774141842331,-11474.57123848,0.00013365,2]
[408698820,1774141842340,-36203.26182334,0.00013369,2]
[408698821,1774141842349,-166.66,0.00013465,2]
[408698823,1774141842358,-1834.29,0.00013485,2]
[408698824,1774141842367,-2610.86,0.00013644,2]
[408698826,1774141842377,-11474.57123843,0.00013647,2]
[408698827,1774141842386,-16349.37,0.00013689,2]
[408698828,1774141842395,-500.0,0.00013698,2]
[408698829,1774141842404,-500.0,0.00013698,2]
[408698830,1774141842414,-1065.99,0.00013732,2]
[408698831,1774141842424,-589.14291018,0.00013732,2]
[408698832,1774141842434,-166.66,0.00013737,2]
[408698833,1774141842444,-291.23940516,0.00013749,2]
[408698834,1774141842454,-2341.04,0.0001382,2]
[408698835,1774141842464,-300.0,0.0001394,2]
[408698836,1774141842473,-448.6,0.00013957,2]
[408698837,1774141842484,-522.0,0.00014,2]
[408698838,1774141842494,-293.0,0.00014008,2]
[408698839,1774141842504,-420.0,0.00014008,2]
[408698840,1774141842513,-166.66,0.00014009,2]
[408698841,1774141842523,-500.0,0.00014024,2]
[408698842,1774141842534,-3792.23,0.00014034,2]
[408698844,1774141842544,-500.0,0.00014042,2]
[408698846,1774141842553,-500.0,0.00014042,2]
[408698849,1774141842565,-500.0,0.00014042,2]
[408698850,1774141842574,-500.0,0.00014042,2]
[408698851,1774141842584,-250.0,0.00014042,2]
[408698852,1774141842594,-600.0,0.00014042,2]
[408698853,1774141842604,-600.0,0.00014042,2]
[408698855,1774141842614,-600.0,0.00014042,2]
[408698858,1774141842624,-300.0,0.00014042,2]
[408698860,1774141842633,-300.0,0.00014042,2]
[408698862,1774141842643,-300.06600227,0.00014042,2]
[408698864,1774141842653,-150.01472707,0.00014042,2]
[408698866,1774141842663,-300.0,0.00014042,2]
[408698868,1774141842673,-414.32525426,0.00014042,2]
[408698870,1774141842683,-5000.0,0.00014042,2]
[408698871,1774141842693,-195.0,0.00014042,2]
[408698872,1774141842702,-195.0,0.00014042,2]
[408698873,1774141842711,-300.0,0.00014043,2]
[408698874,1774141842721,-195.0,0.00014043,2]
[408698875,1774141842731,-195.0,0.00014043,2]
[408698876,1774141842741,-272.35600974,0.00014043,2]
[408698877,1774141842751,-600.0,0.00014043,2]
[408698878,1774141842762,-600.0,0.00014043,2]
[408698879,1774141842772,-500.0,0.00014047,2]
[408698880,1774141842782,-500.0,0.00014047,2]
[408698881,1774141842792,-500.0,0.00014047,2]
[408698882,1774141842803,-500.0,0.00014047,2]
[408698883,1774141842813,-500.0,0.00014047,2]
[408698884,1774141842824,-500.0,0.00014047,2]
[408698885,1774141842834,-1680.0,0.00014047,2]
[408698886,1774141842843,-500.0,0.00014049,2]
[408698887,1774141842854,-5414.42632493,0.00014089,2]
[408698888,1774141842863,-150.0,0.000141,2]
[408698889,1774141842873,-553.21,0.00014223,2]
[408698890,1774141842882,-255.0,0.00014275,2]
[408698891,1774141842893,-166.66,0.00014281,2]
[408698892,1774141842902,-291.23940516,0.00014287,2]
[408698893,1774141842913,-1500.0,0.00014404,2]
[408698894,1774141842923,-500.0,0.00014411,2]
[408698895,1774141842932,-2206.93179807,0.00014436,2]
[408698896,1774141842946,-500.86874305,0.00014464,2]
[408698897,1774141842955,-154.25568664,0.00014577,2]
[408698898,1774141842965,-501.50893912,0.00014694,2]
[408698899,1774141842974,-500.0,0.0001476,2]
[408698900,1774141842984,-5120.84213055,0.0001476,2]
[408698901,1774141842993,-500.0,0.0001476,2]
[408698902,1774141843005,-500.0,0.0001476,2]
[408698903,1774141843015,-500.0,0.0001476,2]
[408698904,1774141843026,-500.0,0.0001476,2]
[408698905,1774141843036,-500.0,0.0001476,2]
[408698906,1774141843046,-500.0,0.0001476,2]
[408698907,1774141843056,-500.0,0.0001476,2]
[408698908,1774141843066,-500.0,0.0001476,2]
[408698909,1774141843075,-500.0,0.0001476,2]
[408698910,1774141843085,-500.0,0.0001476,2]
[408698911,1774141843095,-312.29891464,0.0001476,2]
[408698912,1774141843105,-291.23940516,0.00014824,2]
[408698913,1774141843114,-161.0,0.00015,2]
[408698914,1774141843124,-250.0,0.00015,2]
[408698915,1774141843133,-979.16666667,0.00015105,2]
[408698916,1774141843142,-160.0,0.00015105,2]
[408698917,1774141843152,-160.0,0.00015105,2]
[408698918,1774141843161,-500.0,0.00015173,2]
[408698919,1774141843171,-500.0,0.00015173,2]
[408698920,1774141843181,-500.0,0.00015173,2]
[408698921,1774141843191,-500.0,0.00015173,2]
[408698922,1774141843200,-500.0,0.00015173,2]
[408698923,1774141843211,-500.0,0.00015173,2]
[408698924,1774141843220,-500.0,0.00015173,2]
[408698926,1774141843230,-500.0,0.00015173,2]
[408698927,1774141843239,-500.0,0.00015173,2]
[408698929,1774141843248,-500.0,0.00015173,2]
[408698931,1774141843259,-500.0,0.00015173,2]
[408698933,1774141843268,-500.0,0.00015173,2]
[408698934,1774141843277,-500.0,0.00015173,2]
[408698935,1774141843287,-500.0,0.00015173,2]
[408698936,1774141843296,-500.0,0.00015173,2]
[408698937,1774141843306,-500.0,0.00015173,2]
[408698938,1774141843315,-500.0,0.00015173,2]
[408698939,1774141843325,-500.0,0.00015173,2]
[408698940,1774141843334,-500.0,0.00015173,2]
[408698941,1774141843343,-500.0,0.00015173,2]
[408698942,1774141843352,-500.0,0.00015173,2]
[408698943,1774141843362,-500.0,0.00015173,2]
[408698944,1774141843371,-500.0,0.00015173,2]
[408698945,1774141843380,-500.0,0.00015173,2]
[408698946,1774141843389,-500.0,0.00015173,2]
[408698947,1774141843398,-500.0,0.00015173,2]
[408698948,1774141843407,-500.0,0.00015173,2]
[408698949,1774141843416,-500.0,0.00015173,2]
[408698950,1774141843425,-500.0,0.00015173,2]
[408698951,1774141843434,-500.0,0.00015173,2]
[408698952,1774141843443,-500.0,0.00015173,2]
[408698953,1774141843452,-500.0,0.00015173,2]
[408698954,1774141843462,-500.0,0.00015173,2]
[408698955,1774141843471,-500.0,0.00015173,2]
[408698956,1774141843480,-500.0,0.00015173,2]
[408698957,1774141843490,-500.0,0.00015173,2]
[408698958,1774141843500,-500.0,0.00015173,2]
[408698959,1774141843511,-500.0,0.00015173,2]
[408698960,1774141843520,-500.0,0.00015173,2]
[408698961,1774141843530,-500.0,0.00015173,2]
[408698962,1774141843539,-500.0,0.00015173,2]
[408698963,1774141843549,-500.0,0.00015173,2]
[408698964,1774141843558,-500.0,0.00015173,2]
[408698965,1774141843568,-500.0,0.00015173,2]
[408698966,1774141843577,-500.0,0.00015173,2]
[408698967,1774141843587,-500.0,0.00015173,2]
[408698968,1774141843596,-500.0,0.00015173,2]
[408698969,1774141843605,-500.0,0.00015173,2]
[408698970,1774141843615,-500.0,0.00015173,2]
[408698971,1774141843625,-500.0,0.00015173,2]
[408698972,1774141843634,-500.0,0.00015173,2]
[408698973,1774141843643,-500.0,0.00015173,2]
[408698974,1774141843652,-500.0,0.00015173,2]
[408698975,1774141843661,-500.0,0.00015173,2]
[408698976,1774141843670,-444.87940461,0.00015173,2]
[408698977,1774141843679,-500.0,0.00015173,2]
[408698978,1774141843688,-500.0,0.00015173,2]
[408698979,1774141843697,-500.0,0.00015173,2]
[408698980,1774141843707,-500.0,0.00015173,2]
[408698981,1774141843716,-500.0,0.00015173,2]
[408698982,1774141843725,-500.0,0.00015173,2]
[408698983,1774141843734,-500.0,0.00015173,2]
[408698984,1774141843743,-500.0,0.00015173,2]
[408698985,1774141843752,-500.0,0.00015173,2]
[408698986,1774141843762,-500.0,0.00015173,2]
[408698987,1774141843771,-500.0,0.00015173,2]
[408698988,1774141843780,-500.0,0.00015173,2]
[408698989,1774141843789,-500.0,0.00015173,2]
[408698990,1774141843798,-500.0,0.00015173,2]
[408698991,1774141843807,-330.94415443,0.00015173,2]
[408698992,1774141843816,-500.0,0.00015174,2]
[408698993,1774141843825,-500.0,0.00015174,2]
[408698994,1774141843834,-325.0,0.00015174,2]
[408698995,1774141843843,-500.0,0.00015174,2]
[408698996,1774141843852,-500.0,0.00015174,2]
[408698997,1774141843861,-500.0,0.00015174,2]
[408698998,1774141843870,-500.0,0.00015174,2]
[408698999,1774141843879,-500.0,0.00015174,2]
[408699000,1774141843889,-500.0,0.00015174,2]
[408699001,1774141843898,-577.95065984,0.00015174,2]
[408699002,1774141843907,-150.0,0.00015174,2]
[408699003,1774141843916,-150.0,0.00015174,2]
[408699004,1774141843925,-150.0,0.00015174,2]
[408699005,1774141843935,-500.0,0.00015174,2]
[408699006,1774141843950,-260.21194763,0.00015174,2]
[408699007,1774141843960,-500.0,0.00015174,2]
[408699008,1774141843969,-500.0,0.00015174,2]
[408699009,1774141843979,-500.0,0.00015174,2]
[408699010,1774141843988,-500.0,0.00015174,2]
[408699011,1774141843998,-500.0,0.00015174,2]
[408699012,1774141844007,-500.0,0.00015174,2]
[408699013,1774141844016,-500.0,0.00015174,2]